﻿Department family,Entity,Date,Expense type,Expense area,Supplier,Transaction number,Amount,VAT registration number
Dept of Health,MHRA,06/04/2022,Application Services and Maintenance,Digital and Technology,Accenture (UK) Limited,3003542519,"90,447.07 ",788629066
Dept of Health,MHRA,06/04/2022,Application Services and Maintenance,Digital and Technology,Accenture (UK) Limited,3003542672,"96,552.96 ",788629066
Dept of Health,MHRA,06/04/2022,Assets Under Construction - Plant & Equipment,Corporate,BMG Labetech Limited,10342,"79,360.08 ",685987843
Dept of Health,MHRA,06/04/2022,Infrastructure Services and Maintenance,Digital and Technology,CAE Technology Services Limited,276124,"71,637.32 ",836637989
Dept of Health,MHRA,06/04/2022,Travel & Subsistence,Corporate,Clarity Travel Management,MHRA0071,"46,336.90 ",197694731
Dept of Health,MHRA,06/04/2022,Application Services and Maintenance,Digital and Technology,Cloud Kubed Ltd,INV-0021,"84,000.00 ",383555470
Dept of Health,MHRA,06/04/2022,Assets Under Construction - Other Costs,Corporate,Detail Design Engineering LTD,14262,"48,905.28 ",561067355
Dept of Health,MHRA,06/04/2022,Contracted Out Services Miscellaneous,Enablement,Ernst & Young LLP,GB01G000280231,"615,296.92 ",773831408
Dept of Health,MHRA,06/04/2022,Accommodation Service Charge,Corporate,Government Property Agency,00000001/15832,"104,103.44 ",888801080
Dept of Health,MHRA,06/04/2022,Accommodation Service Charge,Corporate,Government Property Agency,00000001/15834,"273,030.77 ",888801080
Dept of Health,MHRA,06/04/2022,Infrastructure Services and Maintenance,Corporate,Government Property Agency,00000001/15835,"-21,702.22 ",888801080
Dept of Health,MHRA,06/04/2022,Electricity,Corporate,Government Property Agency,00000001/15835,"-29,323.78 ",888801080
Dept of Health,MHRA,06/04/2022,Accommodation Service Charge,Corporate,Government Property Agency,00000001/15836,"36,902.51 ",888801080
Dept of Health,MHRA,06/04/2022,Infrastructure Services and Maintenance,Corporate,Government Property Agency,00000001/15837,"-2,283.88 ",888801080
Dept of Health,MHRA,06/04/2022,Accommodation Rates,Corporate,Government Property Agency,00000001/15837,"-49,875.00 ",888801080
Dept of Health,MHRA,06/04/2022,Accommodation Service Charge,Corporate,Government Property Agency,00000001/15837,"-49,875.00 ",888801080
Dept of Health,MHRA,06/04/2022,Software Development,Safety and Surveillance,Health & Social Care Information Centre,12681643,"1,143,600.00 ",654434435
Dept of Health,MHRA,06/04/2022,IT Database Subscriptions,Safety and Surveillance,Health & Social Care Information Centre,12681690,"30,676.80 ",654434435
Dept of Health,MHRA,06/04/2022,"Advertising, publicity & promotion",Enablement,Health Unlimited Limited,170405090,"35,256.00 ",156008918
Dept of Health,MHRA,06/04/2022,Chemicals and Reagents,"Scientific, Research and Innovation",Illumina Cambridge Ltd,7021163337,"25,477.25 ",726035159
Dept of Health,MHRA,06/04/2022,Assets Under Construction - Plant & Equipment,Corporate,Illumina Cambridge Ltd,7021166734,"224,979.72 ",726035159
Dept of Health,MHRA,06/04/2022,Contracted Out Services Miscellaneous,Safety and Surveillance,Informed Solutions Limited,11740,"41,400.00 ",611559943
Dept of Health,MHRA,06/04/2022,Software & Licences,Digital and Technology,Ingenica Solutions Ltd,PSI2076,"54,150.00 ",152777979
Dept of Health,MHRA,06/04/2022,Central Training,Corporate,KPMG,5502406913,"60,194.58 ",791788859
Dept of Health,MHRA,06/04/2022,Library & Periodical Subscriptions,Enablement,LexisNexis,DI482192F,"60,267.00 ",730859520
Dept of Health,MHRA,06/04/2022,Infrastructure Services and Maintenance,Digital and Technology,NTT Data UK Ltd,4021162,"100,363.80 ",159334590
Dept of Health,MHRA,06/04/2022,Infrastructure Services and Maintenance,Safety and Surveillance,NTT Data UK Ltd,2022Mar0047,"36,000.00 ",159334590
Dept of Health,MHRA,06/04/2022,Contracted Out Services Miscellaneous,Digital and Technology,Red Ant Digital Ltd,INV-08880,"239,700.00 ",123388322
Dept of Health,MHRA,06/04/2022,Assets Under Construction - Land & Buildings,Corporate,Techniplast,35051,"178,029.15 ",684159112
Dept of Health,MHRA,06/04/2022,Lab Equipment Repairs and Maintenance,Corporate,Thermo Fisher Scientific,9112159540,"76,401.80 ",827900029
Dept of Health,MHRA,06/04/2022,"Advertising, publicity & promotion",Safety and Surveillance,Woodnewton Associates Limited,2207 / MH17,"36,000.00 ",906426040
Dept of Health,MHRA,11/04/2022,Assets Under Construction - Capital Grants Income,Corporate,ADT Fire And Security Plc,49479808,"31,376.40 ",413633086
Dept of Health,MHRA,11/04/2022,Postage,Corporate,Government Property Agency,00000001/17099,"38,526.27 ",888801080
Dept of Health,MHRA,11/04/2022,Software Development,Digital and Technology,Investigo Ltd,349033,"63,900.00 ",815575123
Dept of Health,MHRA,11/04/2022,Subcontracted Laboratory Services,Healthcare Quality and Access,LGC Ltd,50996398,"32,618.76 ",674056721
Dept of Health,MHRA,11/04/2022,Software & Licences,Digital and Technology,Matrix Booking Limited,MB-1513,"34,608.00 ",354489466
Dept of Health,MHRA,11/04/2022,Contracted Out Services Miscellaneous,Digital and Technology,NTT Data UK Ltd,5023982,"38,131.62 ",159334590
Dept of Health,MHRA,11/04/2022,Contracted Out Services Miscellaneous,Digital and Technology,Redrock Consulting Ltd,10480,"28,584.00 ",862247715
Dept of Health,MHRA,11/04/2022,Contracted Out Services Miscellaneous,Digital and Technology,Redrock Consulting Ltd,10481,"182,112.20 ",862247715
Dept of Health,MHRA,11/04/2022,Contracted Out Services Miscellaneous,Digital and Technology,Redrock Consulting Ltd,10486,"90,950.98 ",862247715
Dept of Health,MHRA,11/04/2022,Assets Under Construction - Plant & Equipment,Corporate,SBES Limited,115318,"34,196.38 ",790906110
Dept of Health,MHRA,13/04/2022,Assets Under Construction - Plant & Equipment,Corporate,Agilent Technologies LDA UK Ltd,3005110467,"27,267.30 ",180567396
Dept of Health,MHRA,13/04/2022,"Service, Integration & Management - Portfolio Services",Digital and Technology,Credera Limited,INV007274,"154,357.50 ",283541886
Dept of Health,MHRA,13/04/2022,Central Training,Corporate,Ernst & Young LLP,GB01G000289802,"30,079.20 ",773831408
Dept of Health,MHRA,13/04/2022,Internal Audit,Enablement,Government Internal Audit Agency,44335,"37,329.00 ",888827544
Dept of Health,MHRA,13/04/2022,Software & Licences,Digital and Technology,Granicus LLC,150277,"28,458.00 ",
Dept of Health,MHRA,13/04/2022,"Advertising, publicity & promotion",Digital and Technology,Health Unlimited Limited,170405119,"85,875.00 ",156008918
Dept of Health,MHRA,13/04/2022,Computer Peripherals & Consumables,Digital and Technology,Insight Networking Solutions,2100184865,"96,496.92 ",746075129
Dept of Health,MHRA,13/04/2022,Assets Under Construction - Plant & Equipment,Corporate,Mace Ltd,2101015435,"59,577.26 ",776468756
Dept of Health,MHRA,13/04/2022,Assets Under Construction - Plant & Equipment,Corporate,Mace Ltd,2101015436,"66,182.03 ",776468756
Dept of Health,MHRA,13/04/2022,Assets Under Construction - Plant & Equipment,Corporate,Mace Ltd,2101015451,"63,027.88 ",776468756
Dept of Health,MHRA,13/04/2022,Software & Licences,Digital and Technology,Phoenix Software,OP/I927337,"59,968.26 ",755349015
Dept of Health,MHRA,13/04/2022,Software & Licences,Digital and Technology,Phoenix Software,OP/I927368,"29,991.37 ",755349015
Dept of Health,MHRA,13/04/2022,Assets Under Construction - Plant & Equipment,Corporate,VWR International,5065049590,"54,969.60 ",823853225
Dept of Health,MHRA,13/04/2022,Assets Under Construction - Plant & Equipment,Corporate,VWR International,5065049591,"164,257.20 ",823853225
Dept of Health,MHRA,19/04/2022,Central Training,Corporate,Capita Business Services Limited,X150418,"51,207.66 ",618184140
Dept of Health,MHRA,19/04/2022,Security,Corporate,CIS Security Limited,48675,"54,289.93 ",206193092
Dept of Health,MHRA,19/04/2022,Contracted Out Services Miscellaneous,Digital and Technology,NTT Data UK Ltd,5023983,"30,755.09 ",159334590
Dept of Health,MHRA,19/04/2022,"Service, Integration & Management (SIAM)",Digital and Technology,Redrock Consulting Ltd,10485,"89,153.17 ",862247715
Dept of Health,MHRA,21/04/2022,Application Services and Maintenance,Digital and Technology,Accenture (UK) Limited,3003548597,"277,111.20 ",788629066
Dept of Health,MHRA,21/04/2022,"Service, Integration & Management - Enterprise Architecture",Digital and Technology,Certes IT Service Solutions Ltd,10180,"141,420.00 ",377345131
Dept of Health,MHRA,21/04/2022,Software & Licences,Digital and Technology,Database Service Provider Global Ltd,INV-1772,"26,400.00 ",756333619
Dept of Health,MHRA,21/04/2022,Computer Peripherals & Consumables,Digital and Technology,Insight Networking Solutions,2100186790,"36,866.77 ",746075129
Dept of Health,MHRA,25/04/2022,Lab Equipment Repairs and Maintenance,Corporate,Bruker UK Ltd,95752145,"74,539.20 ",272301491
Dept of Health,MHRA,25/04/2022,Contracted Out Services Miscellaneous,Enablement,Ernst & Young LLP,GB01G000290822,"472,700.90 ",773831408
Dept of Health,MHRA,25/04/2022,Infrastructure Services and Maintenance,Digital and Technology,Identity Methods Ltd,INV-0167,"29,452.51 ",125598981
Dept of Health,MHRA,25/04/2022,Application Services and Maintenance,Digital and Technology,Phoenix Software,OP/I927853,"36,368.83 ",755349015
Dept of Health,MHRA,25/04/2022,Infrastructure Services and Maintenance,Digital and Technology,XMA Limited,LB36515,"41,629.10 ",115091937
Dept of Health,MHRA,27/04/2022,Networks,Digital and Technology,CCS Media Limited,4516149,"77,330.88 ",261018047
Dept of Health,MHRA,29/04/2022,Electricity,Corporate,EDF Energy,11989899,"94,924.29 ",523041202
